Cogmind - Beta 9.6 --- EXPLORER MODE // 2020.08.13 @ 01:21:12 Player: K.Ioz Result: Destroyed by G-47 Trooper with Particle Gun Performance ------------- Evolutions (0) 0 Regions Visited (1) 200 Robots Destroyed (1) 5 Value Destroyed (21) 21 Prototype IDs (0) 0 Alien Tech Used (0) 0 Bonus (0) 0 TOTAL SCORE: 226 Bonus ------- None Cogmind --------- Core Integrity 0/250 Matter 145/300 Energy 100/100 System Corruption 0% Temperature Cool (230) Movement Core (150) Ox2 Location -10/Materials Parts ------- > --- POWER (1) -------- (None) > --- PROPULSION (2) --- Aluminum Leg > --- UTILITY (3) ------ Medium Storage Unit > --- WEAPON (2) ------- (None) > --- INVENTORY (8) ---- Light Ion Engine Peak State ------------ > --- POWER ------------ Ion Engine > --- PROPULSION ------- Aluminum Leg Aluminum Leg > --- UTILITY ---------- Medium Storage Unit Light Armor Plating > --- WEAPON ----------- Small Laser Assault Rifle > --- INVENTORY -------- Light Ion Engine Small Laser [Rating: 7] Favorites ----------- Power Ion Engine Engine Ion Engine Propulsion Aluminum Leg Leg Aluminum Leg Utility Medium Storage Unit Storage Medium Storage Unit Protection Light Armor Plating Weapon Assault Rifle Energy Gun Small Laser Ballistic Gun Assault Rifle Build | -11 -10 ------- Run | Scr Mat Slots Evolved 1 | . 1 Power . | . . Propulsion . | . . Utility 1 | . 1 Weapon . | . . Parts Attached 8 | 7 1 Power 1 | 1 . Engine 1 | 1 . Core . | . . Reactor . | . . Propulsion 2 | 2 . Treads . | . . Leg 2 | 2 . Wheel . | . . Hover . | . . Flight . | . . Utility 2 | 2 . Device . | . . Storage 1 | 1 . Processor . | . . Hackware . | . . Protection 1 | 1 . Artifact . | . . Weapon 3 | 2 1 Energy Gun 2 | 1 1 Energy Cannon . | . . Ballistic Gun 1 | 1 . Ballistic Cannon . | . . Launcher . | . . Special Weapon . | . . Impact Weapon . | . . Slashing Weapon . | . . Piercing Weapon . | . . Special Melee Weapon . | . . Unidentified Prototypes . | . . Parts Lost 6 | . 6 Power 1 | . 1 Propulsion 1 | . 1 Utility 1 | . 1 Weapon 3 | . 3 Highest Loss Streak 6 | . 6 Average Slot Usage (%) 82 | . 82 Engine 10 | . 10 Leg 25 | . 25 Storage 12 | . 12 Protection 11 | . 11 Energy Gun 10 | . 10 Ballistic Gun 11 | . 11 Naked Turns . | . . Heaviest Build 19 | 19 19 Greatest Support 20 | 20 20 Greatest Overweight (x) 1 | 1 . Average Overweight (x) . | . . Largest Inventory Capacity 8 | 8 8 Average Capacity 7 | 5 8 Most Carried 2 | 2 2 Average Carried 1 | 1 1 Final Capacity 8 | 8 8 Final Carried 2 | 2 1 Class Distribution -------------------- 100% | Hacker-Mutant Dominant Class ---------------- Hacker-Mutant | -10/Materials Resources | -11 -10 ----------- Run | Scr Mat Matter Collected 242 | 242 . Remotely . | . . Salvage Created 11 | . 11 Parts 4 | . 4 Haulers Intercepted . | . . Recyclers Shooed . | . . Parts Field Recycled . | . . Retrieved Matter . | . . Parts Self-Destructed . | . . Prevented . | . . Kills | -11 -10 ------- Run | Scr Mat Combat Hostiles Destroyed . | . . Classes Destroyed 1 | . 1 Worker 1 | . 1 Best Kill Streak 1 | . 1 Combat Bots Only . | . . Max Kills in Single Turn 1 | . 1 Gunslinging . | . . Exploded . | . . Melee . | . . Uniques/NPCs Destroyed . | . . Combat | -11 -10 -------- Run | Scr Mat Damage Taken 764 | . 764 Core 256 | . 256 Absorbed by Shields . | . . Core Remaining (%) 100 | 100 . Volleys Fired 67 | . 67 Largest 2 | . 2 Hottest 60 | . 60 Shots Fired 105 | . 105 Gun 105 | . 105 Cannon . | . . Launcher . | . . Special . | . . Kinetic 49 | . 49 Thermal 56 | . 56 Explosive . | . . Electromagnetic . | . . Robot Hit Streak 4 | . 4 Robot Miss Streak 2 | . 2 Penetration Max . | . . Secondary Targets . | . . Shots Hit Robots 6 | . 6 Core Hits 1 | . 1 Critical Hits . | . . Critical Kills . | . . Critical Parts Destroyed . | . . Melee Attacks . | . . Impact . | . . Slashing . | . . Piercing . | . . Sneak Attacks . | . . Combat Hostiles . | . . Follow-up Attacks . | . . Damage Inflicted 48 | . 48 Guns 48 | . 48 Cannons . | . . Explosions . | . . Melee . | . . Ramming . | . . Kinetic 37 | . 37 Thermal 11 | . 11 Explosive . | . . Electromagnetic . | . . Impact . | . . Slashing . | . . Piercing . | . . Highest Corruption . | . . Average Corruption . | . . Corruption Purged . | . . Overload Shots . | . . Overflow Damage . | . . Projectiles . | . . Explosions . | . . Melee . | . . Knockbacks . | . . Impact . | . . Kinetic . | . . Secondary . | . . Self-Inflicted Damage . | . . Shots . | . . Rammed . | . . Targets Rammed . | . . Kicked . | . . Crushed . | . . Highest Temperature 593 | . 593 Average Temperature 257 | . 257 Received Heat Transfer 591 | . 591 Effects 21 | . 21 Shutdowns 4 | . 4 Energy Bleed 4 | . 4 Interference 2 | . 2 Matter Decay 3 | . 3 Short Circuit 3 | . 3 Damage (minor) 2 | . 2 Damage (core) 3 | . 3 Siege Activations . | . . Robots Corrupted . | . . Combat Hostiles . | . . Parts Fried . | . . Impact Corruptions . | . . Robots Melted . | . . Combat Hostiles . | . . Parts Melted . | . . Heat Transferred 25 | . 25 Parts Sabotaged . | . . Parts Stolen . | . . Parts Stripped . | . . Power Chain Reactions . | . . Missiles Intercepted . | . . Alert | -11 -10 ------- Run | Scr Mat Peak Influence 28 | . 28 Average Influence 9 | . 11 Maximum Alert Level . | . . Low Security (%) 100 | 100 100 Level 1 . | . . Level 2 . | . . Level 3 . | . . Level 4 . | . . Level 5 . | . . High Security . | . . Max Security . | . . Squads Dispatched . | . . Investigation . | . . Extermination . | . . Reinforcement . | . . Assault . | . . Garrison . | . . Intercept . | . . Construction Impeded . | . . Haulers Reinforced . | . . Stealth | -11 -10 --------- Run | Scr Mat Distress Signals 1 | . 1 Communications Jammed . | . . Distress Signals . | . . Times Spotted 8 | . 8 Peak Tracking Total 6 | . 6 Tactical Retreats . | . . Traps | -11 -10 ------- Run | Scr Mat Traps Triggered . | . . Indirectly . | . . Trap Hack Attempts . | . . Triggered . | . . Disarmed . | . . Reprogrammed . | . . Reused . | . . Traps Extracted . | . . Installed . | . . Triggered . | . . Machines | -11 -10 ---------- Run | Scr Mat Machines Disabled 2 | . 2 Max in Single Turn 1 | . 1 Machines Sabotaged . | . . Garrisons Compromised . | . . Overloaded Fab Kills . | . . Fab Network Shutdowns . | . . Hacking | -11 -10 --------- Run | Scr Mat Machines Accessed 2 | . 2 Terminals 2 | . 2 Fabricators . | . . Repair Stations . | . . Recycling Units . | . . Scanalyzers . | . . Garrison Access . | . . Total Hacks 5 | . 5 Successful 3 | . 3 Failed 2 | . 2 Catastrophic . | . . Database Lockouts . | . . Manual 3 | . 3 Terminals 5 | . 5 Fabricators . | . . Repair Stations . | . . Recycling Units . | . . Scanalyzers . | . . Garrison Access . | . . Terminal Hacks 1 | . 1 Registered Components 1 | . 1 Fabricator Hacks . | . . Repair Station Hacks . | . . Recycling Unit Hacks . | . . Scanalyzer . | . . Garrison Access Hacks . | . . Unauthorized Hacks 2 | . 2 Terminals 2 | . 2 Botnet 2 | . 2 Fabricators . | . . Repair Stations . | . . Recycling Units . | . . Scanalyzers . | . . Garrison Access . | . . Data Cores Recovered . | . . Used . | . . Hacking Detections 2 | . 2 Full Trace Events . | . . Feedback Events . | . . Feedback Blocked . | . . Robot Schematics Acquired . | . . Robots Built . | . . Matter . | . . Time . | . . Total Robot Build Rating . | . . Part Schematics Acquired . | . . Parts Built . | . . Matter . | . . Time . | . . Total Part Build Rating . | . . Parts Repaired . | . . Time . | . . Parts Recycled . | . . Recycled Matter . | . . Retrieved Matter . | . . Retrieved Components . | . . Parts Scanalyzed . | . . Part Schematics Acquired . | . . Parts Damaged . | . . Bothacking | -11 -10 ------------ Run | Scr Mat Used RIF Installer . | . . Robots Hacked . | . . Non-combat . | . . Combat . | . . Robot Hacks Applied . | . . Relay Couplers Released . | . . Robots Rewired . | . . Allies Hacked . | . . Hacks Repelled . | . . Allies | -11 -10 -------- Run | Scr Mat Total Allies . | . . Largest Group . | . . Highest-Rated Group . | . . Highest-Rated Ally . | . . Total Orders . | . . Ally Attacks . | . . Total Damage . | . . Kills . | . . Allies Corrupted . | . . Allies Melted . | . . Intel | -11 -10 ------- Run | Scr Mat Robot Analysis Total . | . . Derelict Logs Recovered . | . . Drone Launches . | . . Drone Recoveries . | . . Exploration | -11 -10 ------------- Run | Scr Mat Turns Passed 481 | 110 371 Spaces Moved 235 | 86 149 Core 19 | 19 . Treads . | . . Legs 216 | 67 149 Wheels . | . . Hover . | . . Flight . | . . Fastest Speed 50 | 50 120 Average Speed 114 | 106 120 Slowest Speed 120 | 120 120 Overloaded Moves . | . . Propulsion Burnouts . | . . Robots Hopped . | . . Cave-ins Triggered . | . . Exploration Rate (%) 18 | 4 32 Regions Visited 1 Branch Regions . Pre-discovered Areas . | . . Known Exits Taken 1 | 1 . Unknown Exits Taken . | . . Scrap Searched . | . . Spaces Dug . | . . Terrain Destroyed . | . . Melee . | . . Projectile . | . . AOE . | . . Actions | -11 -10 --------- Run | Scr Mat Total 337 | 101 236 Wait 26 | 7 19 Move 234 | 85 149 Hop . | . . Pick Up 2 | 2 . Fast Attach 7 | 7 . Attach 1 | . 1 Detach . | . . Swap . | . . Drop . | . . Fire 67 | . 67 Melee . | . . Ram . | . . Kick . | . . Crush . | . . Escape Stasis . | . . Rewire . | . . Trap . | . . Miscellaneous . | . . Route ------- -11/Scrapyard -10/Materials (discovered 1 exit: *Mat) History --------- Turn | Location | Event 3 | -11/Scrapyard | Identified exit to Materials 3 | -11/Scrapyard | Discovered exit to Materials (range 15) 111 | -11/Scrapyard | Entered Materials 111 | -10/Materials | Evolved 1 slot: Utility x1 192 | -10/Materials | Identified exit to Materials 192 | -10/Materials | Discovered exit to Materials (range 3) 302 | -10/Materials | Build established: Hacker-Mutant 452 | -10/Materials | Core integrity fell below 50% 462 | -10/Materials | Core integrity fell below 20% 482 | -10/Materials | Destroyed by G-47 Trooper with Particle Gun Last Messages --------------- 00458_ Overheating: Short circuit. 00460_ K-01 Serf collects debris. 00462_ Assault Rifle permanently disabled. 00462_ Overheating: Short circuit. 00463_ Aluminum Leg permanently disabled. 00463_ Overheating: Short circuit. 00463_ K-01 Serf collects debris. 00465_ Lgt. Armor Plating destroyed. 00465_ G-34 Mercenary destroyed. 00466_ Overheating: Broken Assault Rifle damaged (-2). 00466_ K-01 Serf collects debris. 00467_ Broken Assault Rifle destroyed. 00468_ Overheating: Matter decay (-33). 00468_ R-06 Scavenger collects Aluminum Leg. 00469_ K-01 Serf collects debris. 00472_ R-06 Scavenger collects Sml. Laser. 00473_ K-01 Serf collects debris. 00481_ Broken Aluminum Leg destroyed. 00482_ K-01 Serf cleans the Recycling Unit. 00482_ K-01 Serf collects debris. Map ----- +----------------------------------------------------+ | ?????????# # # #?????????? | | ?????????# # + #?????????? | | ?????????# # # #?????????? | | ??????????? ?# # #?????????? | | ?????????????###+###### #?????????? | | ??????????? ### ##### #?????????? | | ?????????# ! #?????????? | | ?????????# #?????????? | | ??????????? """ """ #?????????? | | ?????????????"" """ #?????????? | | ??????????? """ """ ##?????????? | | ?????????? #??????????? | | ?????????? #??????????? | | ??????????? """ """ #??????????? | | ?????????????"" """ #??????????? | | ??????????? """ """% !! #??????????? | | ?????????? ! #??????????? | | ?????????? g #??????????? | | ??????????? """ """ #??????????? | | ?????????????"" """ #??????????? | | ??????????? "" """ ###########? | | ?????????? r g # #? | | ?????????? tg # #? | | ??????????? """ " k % # """ #? | | ?????????????"" "" # """ #? | | ??????????????" "" @/ """ ! #? | | ??????????? r # """ k #? | | ?????????? ^ # "Y" #? | | ??????????? ###+########## """ #? | | ??????????????????????????###########? | | ?????????????????????????????????????? | | ?????????????????????????????????????? | | ?????????????????????????????????????? | | ?????????????????????????????????????? | | ?????????????????????????????????????? | | ?????????????????????????????????????? | | ?????????????????????????????????????? | | ?????????????????????????????????????? | | ?????????????????????????????????????? | | ?????????????????????????????????????? | | ?????????????????????????????????????? | | ?????????????????????????????????????? | | ?????????????????????????????????????? | | ?????????????????????????????????????? | | ?????????????????????????????????????? | | ?????????????????????????????????????? | | ?????????????????????????????????????? | | ?????????????????????????????????????? | | ?????????????????????????????????????? | | ?????????????????????????????????????? | +----------------------------------------------------+ Best States ------------- Heat Dissipation 25 Energy Generation 10 Energy Capacity 250 Matter Stores 272 Matter Capacity 300 Sight Range 16 Terrain Scan Density 10 Armor Coverage 150 Resistance: KI 35 Resistance: TH 35 Resistance: EX 35 Resistance: EM 35 Resistance: I 35 Resistance: S 35 Resistance: P 35 Evasion (%) 50 Offensive Hacking 20 Item Schematics ----------------- None Robot Schematics ------------------ None Fabricated ------------ Nothing Alien Tech Used ----------------- None Achievements -------------- None Challenges ------------ None Game ------ Seed NovaHeatWarhead Manual? 0 Play Time 00:08:53 Cumulative 167.0 hours Start 2020.07.23 @ 01:06:54 End 2020.08.13 @ 01:21:12 Sessions 19 Manual Loads 0 Difficulty Explorer Special Mode None Game No. 109 Rogue 80 Adventurer 0 Explorer 29 Win Type - Total 4 Types 4/0/0/0/0/0/0 Lore% 62 Gallery% 67 Achievement% 58 Wizard Run 0 Options --------- ASCII 0 Keyboard 1 Movement Vi Keybinds 0 Fullscreen 1 Font 18/Smallcaps Map View 76x50 Tactical HUD 1 Map Filters NONE Filters LOW_CONTRAST(47,30,31) Steam 1 RUN: a1781c3a-c1d3-46ed-b9bc-d0ba0dd67ca6